fUSD/lending_fUSD_20250302
["ID","MTS","AMOUNT","RATE_DAILY","PERIOD"]
[355048102,1740881446458,-500.0,0.00024931,2]
[355048105,1740881446468,-1701.83,0.00024931,2]
[355048108,1740881446478,-500.0,0.00024931,2]
[355048111,1740881446488,-500.0,0.00024931,2]
[355048114,1740881446499,-1199.39,0.00024931,2]
[355048117,1740881446509,-500.0,0.00024931,2]
[355048121,1740881446519,-500.0,0.00024931,2]
[355048124,1740881446530,-500.0,0.00024931,2]
[355048126,1740881446539,-500.0,0.00024931,2]
[355048129,1740881446548,-500.0,0.00024931,2]
[355048132,1740881446558,-500.0,0.00024931,2]
[355048150,1740881446722,-958.87,0.00024931,2]
[355048152,1740881446732,-500.0,0.00024931,2]
[355048154,1740881446741,-500.0,0.00024931,2]
[355048156,1740881446751,-537.3,0.00024931,2]
[355048158,1740881446762,-500.0,0.00024931,2]
[355048160,1740881446771,-1396.67,0.00024931,2]
[355048162,1740881446781,-1134.14,0.00024931,2]
[355048164,1740881446790,-614.8,0.00024931,2]
[355048166,1740881446799,-500.0,0.00024931,2]
[355048168,1740881446810,-593.89,0.00024931,2]
[355048169,1740881446819,-771.92,0.00024931,2]
[355048171,1740881446828,-665.36,0.00024931,2]
[355048173,1740881446839,-1956.37,0.00024931,2]
[355048176,1740881446849,-500.0,0.00024931,2]
[355048178,1740881446860,-391.00091436,0.00024931,2]
[355048180,1740881446869,-586.29,0.00024931,2]
[355048182,1740881446879,-580.23,0.00024931,2]
[355048184,1740881446889,-1160.2,0.00024931,2]
[355048186,1740881446903,-500.0,0.00024931,2]
[355048188,1740881446914,-500.0,0.00024931,2]
[355048190,1740881446925,-2219.8,0.00024931,2]
[355048192,1740881446934,-500.0,0.00024931,2]
[355048194,1740881446944,-557.69,0.00024931,2]
[355048196,1740881446955,-155.81321697,0.00024931,2]
[355048198,1740881446964,-500.0,0.00024931,2]
[355048200,1740881446974,-964.89,0.00024931,2]
[355048203,1740881446984,-229.62538097,0.00024931,2]
[355048206,1740881446998,-2084.81461903,0.00024931,2]
[355048208,1740881447009,-644.5,0.00024931,2]
[355048210,1740881447018,-555.12538097,0.00024931,2]
[355048215,1740881447054,-44.47461903,0.00024931,2]
[355048217,1740881447063,-1202.37,0.00024931,2]
[355048219,1740881447072,-503.61,0.00024931,2]
[355048221,1740881447082,-530.02,0.00024931,2]
[355048223,1740881447091,-1069.38,0.00024931,2]
[355048224,1740881447101,-500.0,0.00024931,2]
[355048226,1740881447111,-500.0,0.00024931,2]
[355048228,1740881447121,-500.0,0.00024931,2]
[355048231,1740881447131,-515.39,0.00024931,2]
[355048233,1740881447142,-2281.49,0.00024931,2]
[355048235,1740881447152,-870.50804274,0.00024931,2]
[355048237,1740881447166,-129.49195726,0.00024931,2]
[355048239,1740881447176,-251.02692329,0.00024931,2]
[355048241,1740881447188,-248.97307671,0.00024931,2]
[355048243,1740881447198,-500.0,0.00024931,2]
[355048245,1740881447208,-2713.09117441,0.00024931,2]
[355048248,1740881447220,-91.46882559,0.00024931,2]
[355048250,1740881447230,-500.0,0.00024931,2]
[355048252,1740881447240,-2255.73,0.00024931,2]
[355048254,1740881447249,-500.0,0.00024931,2]
[355048256,1740881447259,-337.17073867,0.00024931,2]
[355048257,1740881447271,-1680.29926133,0.00024931,2]
[355048259,1740881447281,-500.0,0.00024931,2]
[355048261,1740881447290,-1699.31,0.00024931,2]
[355048263,1740881447300,-500.0,0.00024931,2]
[355048265,1740881447309,-500.0,0.00024931,2]
[355048267,1740881447319,-500.0,0.00024931,2]
[355048269,1740881447328,-846.46,0.00024931,2]
[355048271,1740881447338,-500.0,0.00024931,2]
[355048273,1740881447348,-500.0,0.00024931,2]
[355048274,1740881447357,-2179.00484753,0.00024931,2]
[355048277,1740881447370,-123.86515247,0.00024931,2]
[355048279,1740881447379,-500.0,0.00024931,2]
[355048280,1740881447389,-500.0,0.00024931,2]
[355048282,1740881447399,-2423.42,0.00024931,2]
[355048284,1740881447408,-637.46,0.00024931,2]
[355048286,1740881447418,-500.0,0.00024931,2]
[355048288,1740881447427,-500.0,0.00024931,2]
[355048290,1740881447437,-2023.4,0.00024931,2]
[355048292,1740881447447,-500.0,0.00024931,2]
[355048294,1740881447456,-795.79,0.00024931,2]
[355048296,1740881447465,-500.0,0.00024931,2]
[355048298,1740881447475,-2525.09,0.00024931,2]
[355048300,1740881447484,-554.8,0.00024931,2]
[355048302,1740881447493,-608.49,0.00024931,2]
[355048304,1740881447503,-180.39883833,0.00024931,2]
[355048306,1740881447513,-377.2860093,0.00024931,2]
[355048308,1740881447527,-279.2139907,0.00024931,2]
[355048310,1740881447537,-500.0,0.00024931,2]
[355048312,1740881447547,-767.78,0.00024931,2]
[355048314,1740881447556,-649.93831348,0.00024931,2]
[355048317,1740881447578,-716.91264837,0.00024931,2]
[355048319,1740881447591,-1270.81903815,0.00024931,2]
[355048321,1740881447601,-998.66,0.00024931,2]
[355048323,1740881447611,-773.6,0.00024931,2]
[355048325,1740881447620,-913.4,0.00024931,2]
[355048327,1740881447630,-500.0,0.00024931,2]
[355048329,1740881447640,-500.0,0.00024931,2]
[355048331,1740881447649,-500.0,0.00024931,2]
[355048332,1740881447659,-2612.14,0.00024931,2]
[355048334,1740881447669,-500.0,0.00024931,2]
[355048336,1740881447679,-250.26775627,0.00024931,2]
[355048339,1740881447692,-708.18224373,0.00024931,2]
[355048341,1740881447702,-3185.71,0.00024931,2]
[355048343,1740881447712,-500.0,0.00024931,2]
[355048345,1740881447721,-500.0,0.00024931,2]
[355048347,1740881447731,-500.0,0.00024931,2]
[355048349,1740881447741,-1092.49,0.00024931,2]
[355048351,1740881447752,-2932.1,0.00024931,2]
[355048353,1740881447764,-500.0,0.00024931,2]
[355048354,1740881447774,-650.83,0.00024931,2]
[355048356,1740881447784,-500.0,0.00024931,2]
[355048358,1740881447793,-500.0,0.00024931,2]
[355048360,1740881447803,-1442.4,0.00024931,2]
[355048362,1740881447813,-2420.86,0.00024931,2]
[355048364,1740881447823,-815.08,0.00024931,2]
[355048366,1740881447832,-2255.68,0.00024931,2]
[355048368,1740881447842,-3135.44,0.00024931,2]
[355048370,1740881447852,-500.0,0.00024931,2]
[355048372,1740881447861,-500.0,0.00024931,2]
[355048374,1740881447870,-713.49,0.00024931,2]
[355048376,1740881447880,-517.56,0.00024931,2]
[355048377,1740881447889,-500.0,0.00024931,2]
[355048379,1740881447899,-500.0,0.00024931,2]
[355048382,1740881447910,-500.0,0.00024931,2]
[355048383,1740881447920,-500.0,0.00024931,2]
[355048385,1740881447930,-3194.52,0.00024931,2]
[355048387,1740881447940,-500.0,0.00024931,2]
[355048389,1740881447950,-1589.23,0.00024931,2]
[355048391,1740881447960,-500.0,0.00024931,2]
[355048393,1740881447970,-500.0,0.00024931,2]
[355048395,1740881447979,-514.97,0.00024931,2]
[355048397,1740881447991,-1284.33,0.00024931,2]
[355048399,1740881448000,-806.42,0.00024931,2]
[355048401,1740881448010,-904.53,0.00024931,2]
[355048403,1740881448019,-602.13,0.00024931,2]
[355048405,1740881448029,-2001.38,0.00024931,2]
[355048407,1740881448039,-500.0,0.00024931,2]
[355048409,1740881448048,-585.0,0.00024931,2]
[355048411,1740881448058,-1274.5,0.00024931,2]
[355048413,1740881448067,-500.0,0.00024931,2]
[355048423,1740881448163,-816.02,0.00024931,2]
[355048426,1740881448182,-566.22,0.00024931,2]
[355048428,1740881448193,-500.66,0.00024931,2]
[355048430,1740881448204,-500.0,0.00024931,2]
[355048431,1740881448214,-500.0,0.00024931,2]
[355048434,1740881448226,-500.0,0.00024931,2]
[355048435,1740881448236,-2074.9,0.00024931,2]
[355048438,1740881448247,-545.0,0.00024958,2]
[355048439,1740881448256,-152.0,0.00024964,6]
[355048441,1740881448266,-500.0,0.00024973,2]
[355048444,1740881448278,-503.32690953,0.00024973,2]
[355048445,1740881448289,-545.0,0.00024986,2]
[355048447,1740881448299,-1253.46436114,0.00025,120]
[355048449,1740881448309,-1952.36384947,0.00025,120]
[355048451,1740881448320,-545.0,0.00025013,2]
[355048453,1740881448330,-545.0,0.00025041,2]
[355048455,1740881448340,-545.0,0.00025068,2]
[355048457,1740881448350,-552.09,0.00025081,2]
[355048459,1740881448360,-545.0,0.00025095,2]
[355048461,1740881448370,-240.92268614,0.00025105,2]
[355048463,1740881448380,-545.0,0.00025123,2]
[355048465,1740881448390,-1338.52019162,0.00025141,4]
[355048467,1740881448400,-545.0,0.0002515,2]
[355048469,1740881448410,-563.43683695,0.00025178,2]
[355048471,1740881448420,-1000.0,0.00025178,2]
[355048473,1740881448431,-150.0,0.0002519,2]
[355048475,1740881448442,-500.0,0.00025205,2]
[355048477,1740881448452,-500.0,0.00025205,2]
[355048479,1740881448463,-500.0,0.00025205,2]
[355048481,1740881448473,-500.0,0.00025205,2]
[355048483,1740881448483,-500.0,0.00025205,2]
[355048485,1740881448493,-500.0,0.00025205,2]
[355048487,1740881448503,-500.0,0.00025205,2]
[355048489,1740881448513,-500.0,0.00025205,2]
[355048491,1740881448522,-500.0,0.00025205,2]
[355048493,1740881448532,-500.0,0.00025205,2]
[355048495,1740881448542,-500.0,0.00025205,2]
[355048497,1740881448552,-500.0,0.00025205,2]
[355048499,1740881448562,-500.0,0.00025205,2]
[355048501,1740881448572,-500.0,0.00025205,2]
[355048503,1740881448581,-500.0,0.00025205,2]
[355048505,1740881448590,-835.24,0.00025205,2]
[355048507,1740881448600,-500.0,0.00025205,2]
[355048509,1740881448610,-500.0,0.00025205,2]
[355048511,1740881448620,-500.0,0.00025205,2]
[355048513,1740881448629,-500.0,0.00025205,2]
[355048515,1740881448638,-500.0,0.00025205,2]
[355048517,1740881448647,-500.0,0.00025205,2]
[355048519,1740881448656,-1040.32,0.00025205,2]
[355048521,1740881448666,-500.0,0.00025205,2]
[355048523,1740881448677,-2264.332397,0.00025205,2]
[355048525,1740881448686,-500.0,0.00025205,2]
[355048527,1740881448696,-500.0,0.00025205,2]
[355048528,1740881448705,-460.04983045,0.00025205,2]
[355048530,1740881448715,-500.0,0.00025205,2]
[355048532,1740881448724,-500.0,0.00025205,2]
[355048534,1740881448733,-500.0,0.00025205,2]
[355048536,1740881448743,-500.0,0.00025205,2]
[355048538,1740881448752,-500.0,0.00025205,2]
[355048540,1740881448761,-500.0,0.00025205,2]
[355048542,1740881448773,-500.0,0.00025205,2]
[355048544,1740881448783,-500.0,0.00025205,2]
[355048545,1740881448793,-500.0,0.00025205,2]
[355048547,1740881448805,-762.378887,0.00025205,2]
[355048549,1740881448819,-500.0,0.00025205,2]
[355048550,1740881448845,-500.0,0.00025205,2]
[355048551,1740881448866,-500.0,0.00025205,2]
[355048552,1740881448888,-500.0,0.00025205,2]
[355048553,1740881448911,-500.0,0.00025205,2]
[355048554,1740881448928,-500.0,0.00025205,2]
[355048555,1740881448951,-500.0,0.00025205,2]
[355048557,1740881448974,-500.0,0.00025205,2]
[355048560,1740881448995,-633.2098151,0.00025205,2]
[355048563,1740881449016,-481.09761694,0.00025205,2]
[355048567,1740881449037,-500.0,0.00025205,2]
[355048570,1740881449059,-500.0,0.00025205,2]
[355048573,1740881449076,-500.0,0.00025205,2]
[355048576,1740881449100,-500.0,0.00025205,2]
[355048578,1740881449115,-500.0,0.00025205,2]
[355048581,1740881449134,-439.17288777,0.00025205,2]
[355048584,1740881449152,-523.56,0.00025205,2]
[355048586,1740881449169,-806.12,0.00025205,2]
[355048589,1740881449189,-500.0,0.00025205,2]
[355048592,1740881449207,-500.0,0.00025205,2]
[355048595,1740881449225,-500.0,0.00025205,2]
[355048598,1740881449241,-517.33,0.00025205,2]
[355048600,1740881449258,-500.0,0.00025205,2]
[355048603,1740881449276,-266.39278413,0.00025205,2]
[355048606,1740881449293,-500.0,0.00025205,2]
[355048609,1740881449311,-500.0,0.00025205,2]
[355048611,1740881449329,-500.0,0.00025205,2]
[355048614,1740881449347,-500.0,0.00025205,2]
[355048617,1740881449364,-746.37,0.00025205,2]
[355048619,1740881449382,-500.0,0.00025205,2]
[355048622,1740881449398,-306.23395907,0.00025205,2]
[355048625,1740881449418,-500.0,0.00025205,2]
[355048628,1740881449436,-500.0,0.00025205,2]
[355048631,1740881449454,-1782.87,0.00025205,2]
[355048633,1740881449471,-500.0,0.00025205,2]
[355048636,1740881449488,-500.0,0.00025205,2]
[355048639,1740881449507,-500.0,0.00025205,2]
[355048642,1740881449525,-562.75,0.00025205,2]
[355048645,1740881449544,-500.0,0.00025205,2]
[355048647,1740881449562,-500.0,0.00025205,2]
[355048650,1740881449580,-500.0,0.00025205,2]
[355048653,1740881449598,-500.0,0.00025205,2]
[355048656,1740881449616,-500.0,0.00025205,2]
[355048659,1740881449634,-500.0,0.00025205,2]
[355048662,1740881449653,-500.0,0.00025205,2]
[355048664,1740881449667,-200.09209722,0.00025205,2]
[355048666,1740881449676,-500.0,0.00025205,2]
[355048668,1740881449686,-500.0,0.00025205,2]
[355048670,1740881449696,-1742.16,0.00025205,2]
[355048672,1740881449706,-500.0,0.00025205,2]
[355048674,1740881449717,-500.0,0.00025205,2]
[355048676,1740881449726,-500.0,0.00025205,2]
[355048678,1740881449736,-301.46105918,0.00025205,2]
[355048680,1740881449745,-500.0,0.00025205,2]
[355048682,1740881449755,-500.0,0.00025205,2]
[355048684,1740881449766,-500.0,0.00025205,2]
[355048686,1740881449776,-500.0,0.00025205,2]
[355048688,1740881449785,-1760.63,0.00025205,2]
[355048690,1740881449794,-500.0,0.00025205,2]
[355048692,1740881449805,-742.99,0.00025205,2]
[355048694,1740881449816,-367.98202265,0.00025205,2]
[355048697,1740881449826,-500.0,0.00025205,2]
[355048699,1740881449837,-500.0,0.00025205,2]
[355048701,1740881449847,-294.08387861,0.00025205,2]
[355048728,1740881450108,-1640.74,0.00025205,2]
[355048732,1740881450135,-2520.02,0.00025205,2]
[355048735,1740881450154,-500.0,0.00025205,2]
[355048737,1740881450167,-500.0,0.00025205,2]
[355048739,1740881450178,-558.36,0.00025205,2]
[355048741,1740881450188,-500.0,0.00025205,2]
[355048743,1740881450198,-913.31,0.00025205,2]
[355048745,1740881450208,-500.0,0.00025205,2]
[355048747,1740881450218,-500.0,0.00025205,2]
[355048749,1740881450228,-1012.61,0.00025205,2]
[355048751,1740881450238,-512.01,0.00025205,2]
[355048753,1740881450247,-500.0,0.00025205,2]
[355048755,1740881450256,-501.78,0.00025205,2]
[355048757,1740881450266,-500.0,0.00025205,2]
[355048759,1740881450276,-500.0,0.00025205,2]
[355048761,1740881450286,-500.0,0.00025205,2]
[355048763,1740881450295,-500.0,0.00025205,2]
[355048765,1740881450305,-500.0,0.00025205,2]
[355048767,1740881450314,-500.0,0.00025205,2]
[355048769,1740881450324,-584.65757582,0.00025205,2]
[355048771,1740881450333,-500.0,0.00025205,2]
[355048773,1740881450343,-500.0,0.00025205,2]
[355048775,1740881450352,-500.0,0.00025205,2]
[355048777,1740881450362,-198.48194446,0.00025205,2]
[355048779,1740881450371,-500.0,0.00025205,2]
[355048781,1740881450381,-441.07643069,0.00025205,2]
[355048783,1740881450390,-500.0,0.00025205,2]
[355048785,1740881450400,-500.0,0.00025205,2]
[355048787,1740881450409,-500.0,0.00025205,2]
[355048789,1740881450420,-500.0,0.00025205,2]
[355048791,1740881450429,-1913.28,0.00025205,2]
[355048793,1740881450438,-509.65,0.00025205,2]
[355048795,1740881450447,-500.0,0.00025205,2]
[355048797,1740881450456,-500.0,0.00025205,2]
[355048799,1740881450466,-500.0,0.00025205,2]
[355048801,1740881450475,-1667.9,0.00025205,2]
[355048803,1740881450484,-500.0,0.00025205,2]
[355048805,1740881450494,-500.0,0.00025205,2]
[355048806,1740881450503,-500.0,0.00025205,2]
[355048808,1740881450512,-500.0,0.00025205,2]
[355048810,1740881450521,-500.0,0.00025205,2]
[355048812,1740881450531,-500.0,0.00025205,2]
[355048814,1740881450540,-500.0,0.00025205,2]
[355048816,1740881450550,-2313.28,0.00025205,2]
[355048818,1740881450560,-1188.31,0.00025205,2]
[355048820,1740881450569,-500.0,0.00025205,2]
[355048822,1740881450578,-500.0,0.00025205,2]
[355048824,1740881450587,-500.0,0.00025205,2]
[355048826,1740881450597,-496.3811395,0.00025205,2]
[355048828,1740881450607,-500.0,0.00025205,2]
[355048830,1740881450617,-500.0,0.00025205,2]
[355048832,1740881450627,-500.0,0.00025205,2]
[355048834,1740881450636,-847.63,0.00025205,2]
[355048836,1740881450646,-610.13,0.00025205,2]
[355048838,1740881450655,-543.69507847,0.00025205,2]
[355048840,1740881450664,-602.12,0.00025205,2]
[355048842,1740881450673,-500.0,0.00025205,2]
[355048844,1740881450683,-500.0,0.00025205,2]
[355048846,1740881450692,-500.0,0.00025205,2]
[355048848,1740881450701,-500.0,0.00025205,2]
[355048850,1740881450711,-500.0,0.00025205,2]
[355048852,1740881450721,-500.0,0.00025205,2]
[355048854,1740881450730,-1701.83,0.00025205,2]
[355048856,1740881450739,-500.0,0.00025205,2]
[355048858,1740881450748,-500.0,0.00025205,2]
[355048860,1740881450758,-1199.39,0.00025205,2]
[355048862,1740881450771,-500.0,0.00025205,2]
[355048864,1740881450780,-500.0,0.00025205,2]
[355048866,1740881450790,-500.0,0.00025205,2]
[355048868,1740881450799,-500.0,0.00025205,2]
[355048870,1740881450810,-500.0,0.00025205,2]
[355048872,1740881450819,-500.0,0.00025205,2]
[355048874,1740881450829,-958.87,0.00025205,2]
[355048876,1740881450839,-500.0,0.00025205,2]
[355048878,1740881450848,-500.0,0.00025205,2]
[355048880,1740881450858,-537.3,0.00025205,2]
[355048882,1740881450867,-500.0,0.00025205,2]
[355048884,1740881450876,-1396.67,0.00025205,2]
[355048886,1740881450886,-1134.14,0.00025205,2]
[355048888,1740881450895,-614.8,0.00025205,2]
[355048890,1740881450905,-500.0,0.00025205,2]
[355048892,1740881450914,-593.89,0.00025205,2]
[355048894,1740881450924,-771.92,0.00025205,2]
[355048896,1740881450932,-665.36,0.00025205,2]
[355048898,1740881450945,-1956.37,0.00025205,2]
[355048900,1740881450955,-500.0,0.00025205,2]
[355048902,1740881450964,-586.29,0.00025205,2]
[355048904,1740881450973,-580.23,0.00025205,2]
[355048906,1740881450983,-1160.2,0.00025205,2]
[355048908,1740881450993,-500.0,0.00025205,2]
[355048910,1740881451002,-500.0,0.00025205,2]
[355048912,1740881451011,-2219.8,0.00025205,2]
[355048914,1740881451021,-500.0,0.00025205,2]
[355048916,1740881451031,-557.69,0.00025205,2]
[355048918,1740881451040,-500.0,0.00025205,2]
[355048920,1740881451049,-964.89,0.00025205,2]
[355048922,1740881451059,-2314.44,0.00025205,2]
[355048924,1740881451068,-644.5,0.00025205,2]
[355048926,1740881451078,-599.6,0.00025205,2]
[355048928,1740881451087,-1202.37,0.00025205,2]
[355048930,1740881451097,-503.61,0.00025205,2]
[355048932,1740881451107,-530.02,0.00025205,2]
[355048934,1740881451116,-1069.38,0.00025205,2]
[355048936,1740881451126,-500.0,0.00025205,2]
[355048938,1740881451135,-500.0,0.00025205,2]
[355048940,1740881451145,-500.0,0.00025205,2]
[355048942,1740881451155,-515.39,0.00025205,2]
[355048944,1740881451164,-2281.49,0.00025205,2]
[355048946,1740881451174,-1000.0,0.00025205,2]
[355048948,1740881451184,-500.0,0.00025205,2]
[355048950,1740881451193,-500.0,0.00025205,2]
[355048952,1740881451203,-2804.56,0.00025205,2]
[355048954,1740881451214,-500.0,0.00025205,2]
[355048956,1740881451223,-2255.73,0.00025205,2]
[355048958,1740881451233,-500.0,0.00025205,2]
[355048960,1740881451244,-2017.47,0.00025205,2]
[355048962,1740881451254,-500.0,0.00025205,2]
[355048964,1740881451264,-1699.31,0.00025205,2]
[355048966,1740881451274,-500.0,0.00025205,2]
[355048968,1740881451284,-500.0,0.00025205,2]
[355048970,1740881451294,-500.0,0.00025205,2]
[355048973,1740881451304,-846.46,0.00025205,2]
[355048974,1740881451314,-500.0,0.00025205,2]
[355048976,1740881451324,-500.0,0.00025205,2]
[355048978,1740881451334,-2302.87,0.00025205,2]
[355048980,1740881451343,-500.0,0.00025205,2]
[355048982,1740881451353,-500.0,0.00025205,2]
[355048984,1740881451362,-2423.42,0.00025205,2]
[355048986,1740881451372,-637.46,0.00025205,2]
[355048988,1740881451381,-500.0,0.00025205,2]
[355048990,1740881451391,-500.0,0.00025205,2]
[355048992,1740881451401,-2023.4,0.00025205,2]
[355048994,1740881451411,-500.0,0.00025205,2]
[355048996,1740881451421,-795.79,0.00025205,2]
[355048998,1740881451431,-500.0,0.00025205,2]
[355049000,1740881451442,-2525.09,0.00025205,2]
[355049002,1740881451451,-554.8,0.00025205,2]
[355049004,1740881451461,-608.49,0.00025205,2]
[355049006,1740881451471,-656.5,0.00025205,2]
[355049008,1740881451481,-500.0,0.00025205,2]
[355049010,1740881451491,-767.78,0.00025205,2]
[355049013,1740881451501,-2637.67,0.00025205,2]
[355049015,1740881451511,-998.66,0.00025205,2]
[355049016,1740881451520,-773.6,0.00025205,2]
[355049018,1740881451529,-913.4,0.00025205,2]
[355049021,1740881451539,-500.0,0.00025205,2]
[355049023,1740881451549,-500.0,0.00025205,2]
[355049025,1740881451558,-500.0,0.00025205,2]
[355049027,1740881451568,-2612.14,0.00025205,2]
[355049029,1740881451577,-500.0,0.00025205,2]
[355049031,1740881451587,-958.45,0.00025205,2]
[355049033,1740881451596,-3185.71,0.00025205,2]
[355049035,1740881451606,-500.0,0.00025205,2]
[355049037,1740881451615,-500.0,0.00025205,2]
[355049039,1740881451624,-500.0,0.00025205,2]
[355049040,1740881451633,-1092.49,0.00025205,2]
[355049042,1740881451643,-2932.1,0.00025205,2]
[355049044,1740881451652,-500.0,0.00025205,2]
[355049046,1740881451663,-650.83,0.00025205,2]
[355049048,1740881451673,-500.0,0.00025205,2]
[355049050,1740881451683,-500.0,0.00025205,2]
[355049052,1740881451692,-1442.4,0.00025205,2]
[355049054,1740881451702,-2420.86,0.00025205,2]
[355049056,1740881451711,-815.08,0.00025205,2]
[355049058,1740881451721,-2255.68,0.00025205,2]
[355049060,1740881451730,-3135.44,0.00025205,2]
[355049062,1740881451740,-500.0,0.00025205,2]
[355049064,1740881451750,-500.0,0.00025205,2]
[355049066,1740881451761,-713.49,0.00025205,2]
[355049068,1740881451772,-517.56,0.00025205,2]
[355049070,1740881451781,-500.0,0.00025205,2]
[355049072,1740881451791,-500.0,0.00025205,2]
[355049074,1740881451802,-607.85146664,0.00025205,2]
[355049076,1740881451811,-500.0,0.00025205,2]
[355049078,1740881451821,-3194.52,0.00025205,2]
[355049080,1740881451830,-500.0,0.00025205,2]
[355049082,1740881451841,-1589.23,0.00025205,2]
[355049084,1740881451851,-500.0,0.00025205,2]
[355049086,1740881451860,-500.0,0.00025205,2]
[355049088,1740881451869,-514.97,0.00025205,2]
[355049090,1740881451880,-1284.33,0.00025205,2]
[355049092,1740881451889,-806.42,0.00025205,2]
[355049094,1740881451899,-904.53,0.00025205,2]
[355049096,1740881451908,-602.13,0.00025205,2]
[355049098,1740881451918,-2001.38,0.00025205,2]
[355049100,1740881451930,-585.0,0.00025205,2]
[355049102,1740881451940,-500.0,0.00025205,2]
[355049104,1740881451950,-1274.5,0.00025205,2]
[355049106,1740881451960,-500.0,0.00025205,2]
[355049108,1740881451969,-816.02,0.00025205,2]
[355049110,1740881451979,-566.22,0.00025205,2]
[355049112,1740881451988,-500.66,0.00025205,2]
[355049114,1740881451998,-500.0,0.00025205,2]
[355049116,1740881452007,-500.0,0.00025205,2]
[355049118,1740881452016,-500.0,0.00025205,2]
[355049120,1740881452026,-2074.9,0.00025205,2]
[355049122,1740881452036,-2233.79608503,0.00025409,2]
[355049124,1740881452047,-152.0,0.00025412,7]
[355049126,1740881452057,-1338.52019162,0.00025452,4]
[355049128,1740881452067,-500.0,0.00025479,2]
[355049130,1740881452076,-500.0,0.00025479,2]
[355049132,1740881452086,-500.0,0.00025479,2]
[355049134,1740881452096,-500.0,0.00025479,2]
[355049136,1740881452105,-500.0,0.00025479,2]
[355049138,1740881452114,-500.0,0.00025479,2]
[355049140,1740881452124,-500.0,0.00025479,2]
[355049142,1740881452133,-500.0,0.00025479,2]
[355049144,1740881452143,-518.37112571,0.00025479,2]
[355049146,1740881452152,-500.0,0.00025479,2]
[355049147,1740881452164,-500.0,0.00025479,2]
[355049149,1740881452173,-500.0,0.00025479,2]
[355049151,1740881452183,-500.0,0.00025479,2]
[355049153,1740881452193,-500.0,0.00025479,2]
[355049155,1740881452202,-500.0,0.00025479,2]
[355049157,1740881452211,-835.24,0.00025479,2]
[355049159,1740881452221,-500.0,0.00025479,2]
[355049161,1740881452231,-500.0,0.00025479,2]
[355049163,1740881452241,-500.0,0.00025479,2]
[355049165,1740881452250,-500.0,0.00025479,2]
[355049167,1740881452260,-500.0,0.00025479,2]
[355049169,1740881452269,-500.0,0.00025479,2]
[355049171,1740881452279,-1040.32,0.00025479,2]
[355049173,1740881452288,-500.0,0.00025479,2]
[355049175,1740881452298,-2264.332397,0.00025479,2]
[355049177,1740881452307,-500.0,0.00025479,2]
[355049179,1740881452317,-500.0,0.00025479,2]
[355049181,1740881452326,-500.0,0.00025479,2]
[355049183,1740881452335,-500.0,0.00025479,2]
[355049185,1740881452345,-500.0,0.00025479,2]
[355049187,1740881452355,-500.0,0.00025479,2]